fUSD/lending_fUSD_20240730
["ID","MTS","AMOUNT","RATE_DAILY","PERIOD"]
[333651870,1722305440856,-648.9,0.00010998,2]
[333651871,1722305440866,-648.9,0.00010998,2]
[333651872,1722305440876,-648.9,0.00010998,2]
[333651873,1722305440885,-648.9,0.00010998,2]
[333651874,1722305440895,-309.27077915,0.00010998,2]
[333651875,1722305440904,-500.0,0.00010998,2]
[333651876,1722305440914,-500.0,0.00010998,2]
[333651877,1722305440923,-500.0,0.00010998,2]
[333651878,1722305440933,-500.0,0.00010998,2]
[333651879,1722305440943,-500.0,0.00010998,2]
[333651880,1722305440952,-500.0,0.00010998,2]
[333651881,1722305440962,-500.0,0.00010998,2]
[333651882,1722305440971,-500.0,0.00010998,2]
[333651883,1722305440980,-500.0,0.00010998,2]
[333651884,1722305440990,-500.0,0.00010998,2]
[333651885,1722305440999,-500.0,0.00010998,2]
[333651886,1722305441009,-460.17352039,0.00010998,2]
[333651887,1722305441019,-500.0,0.00010998,2]
[333651888,1722305441028,-500.0,0.00010998,2]
[333651889,1722305441037,-500.0,0.00010998,2]
[333651890,1722305441047,-500.0,0.00010998,2]
[333651891,1722305441058,-500.0,0.00010998,2]
[333651892,1722305441067,-500.0,0.00010998,2]
[333651893,1722305441076,-500.0,0.00010998,2]
[333651894,1722305441086,-500.0,0.00010998,2]
[333651895,1722305441095,-500.0,0.00010998,2]
[333651896,1722305441105,-390.34192901,0.00010998,2]
[333651897,1722305441114,-500.0,0.00010998,2]
[333651898,1722305441124,-500.0,0.00010998,2]
[333651899,1722305441134,-500.0,0.00010998,2]
[333651900,1722305441144,-500.0,0.00010998,2]
[333651901,1722305441156,-786.42,0.00010998,2]
[333651902,1722305441166,-786.42,0.00010998,2]
[333651903,1722305441176,-786.42,0.00010998,2]
[333651904,1722305441186,-786.42,0.00010998,2]
[333651905,1722305441197,-500.0,0.00010998,2]
[333651906,1722305441207,-500.0,0.00010998,2]
[333651907,1722305441216,-500.0,0.00010998,2]
[333651908,1722305441226,-500.0,0.00010998,2]
[333651909,1722305441237,-153.97335813,0.00010998,2]
[333651910,1722305441247,-500.0,0.00010998,2]
[333651911,1722305441256,-500.0,0.00010998,2]
[333651912,1722305441266,-500.0,0.00010998,2]
[333651913,1722305441276,-513.5406006,0.00010998,2]
[333651914,1722305441286,-500.0,0.00010998,2]
[333651915,1722305441295,-500.0,0.00010998,2]
[333651916,1722305441308,-500.0,0.00010998,2]
[333651917,1722305441318,-500.0,0.00010998,2]
[333651918,1722305441329,-500.0,0.00010998,2]
[333651919,1722305441338,-500.0,0.00010998,2]
[333651920,1722305441348,-500.0,0.00010998,2]
[333651921,1722305441359,-500.0,0.00010998,2]
[333651922,1722305441369,-500.0,0.00010998,2]
[333651923,1722305441379,-500.0,0.00010998,2]
[333651924,1722305441388,-500.0,0.00010998,2]
[333651925,1722305441399,-500.0,0.00010998,2]
[333651926,1722305441408,-500.0,0.00010998,2]
[333651927,1722305441418,-500.0,0.00010998,2]
[333651928,1722305441428,-500.0,0.00010998,2]
[333651929,1722305441438,-500.0,0.00010998,2]
[333651930,1722305441448,-571.43,0.00010998,2]
[333651931,1722305441458,-571.43,0.00010998,2]
[333651932,1722305441468,-500.0,0.00010998,2]
[333651933,1722305441478,-571.43,0.00010998,2]
[333651934,1722305441488,-215.61,0.00010998,2]
[333651935,1722305441497,-571.43,0.00010998,2]
[333651936,1722305441507,-500.0,0.00010998,2]
[333651937,1722305441517,-500.0,0.00010998,2]
[333651938,1722305441527,-500.0,0.00010998,2]
[333651939,1722305441537,-500.0,0.00010998,2]
[333651940,1722305441546,-500.0,0.00010998,2]
[333651941,1722305441557,-500.0,0.00010998,2]
[333651942,1722305441567,-500.0,0.00010998,2]
[333651943,1722305441576,-500.0,0.00010998,2]
[333651944,1722305441586,-500.0,0.00010998,2]
[333651945,1722305441596,-287.00502209,0.00010998,2]
[333651946,1722305441605,-500.0,0.00010998,2]
[333651947,1722305441615,-500.0,0.00010998,2]
[333651948,1722305441625,-609.93010207,0.00010998,2]
[333651949,1722305441634,-1993.24,0.00010998,2]
[333651950,1722305441644,-1993.24,0.00010998,2]
[333651951,1722305441653,-1993.24,0.00010998,2]
[333651952,1722305441663,-1993.24,0.00010998,2]
[333651953,1722305441672,-500.0,0.00010998,2]
[333651954,1722305441682,-228.51132486,0.00010998,2]
[333651955,1722305441691,-500.0,0.00010998,2]
[333651956,1722305441701,-196.21722031,0.00010998,2]
[333651957,1722305441711,-500.0,0.00010998,2]
[333651958,1722305441721,-500.0,0.00010998,2]
[333651959,1722305441730,-500.0,0.00010998,2]
[333651960,1722305441740,-500.0,0.00010998,2]
[333651961,1722305441750,-500.0,0.00010998,2]
[333651962,1722305441760,-518.48,0.00010998,2]
[333651963,1722305441770,-518.48,0.00010998,2]
[333651964,1722305441780,-518.48,0.00010998,2]
[333651965,1722305441790,-518.48,0.00010998,2]
[333651966,1722305441800,-176.97396953,0.00010998,2]
[333651967,1722305441812,-520.57736902,0.00010999,2]
[333651968,1722305441822,-266.3927,0.00010999,2]
[333651969,1722305441831,-453.49106418,0.00010999,2]
[333651970,1722305441841,-124918.70824912,0.00010999,2]
[333651971,1722305441856,-270.03107511,0.00010999,2]
[333651972,1722305441867,-1625.88160287,0.00010999,2]
[333651973,1722305442040,-501.8637,0.00010797,2]
[333651974,1722305442050,-935.789288,0.00010999,2]
[333651975,1722305442078,-19710.74811898,0.00010999,2]
[333651976,1722305442089,-2500.0,0.00010999,2]
[333651977,1722305442101,-29044.86442533,0.00010999,2]
[333651978,1722305442152,-493.31810012,0.00010999,2]
[333651979,1722305442165,-364.58000013,0.00010999,2]
[333651980,1722305442176,-825.15284921,0.00010999,2]
[333651981,1722305442192,-1114.04420081,0.00010999,2]
[333651982,1722305442205,-7021.87,0.00010999,2]
[333651983,1722305442221,-2954.68262921,0.00010999,2]
[333651984,1722305442235,-16040.5,0.00010999,2]
[333651985,1722305442246,-1608.52092669,0.00010999,2]
[333651986,1722305442258,-1829.78079802,0.00010999,2]
[333652003,1722305443507,-195.9236,0.00010697,2]
[333652004,1722305443516,-304.0764,0.00010958,2]
[333652005,1722305443528,-204.16170763,0.00010958,2]
[333652006,1722305443537,-217.56635949,0.00010999,2]
[333652007,1722305443548,-225432.14200055,0.00010999,2]
[333652008,1722305443586,-6318.80328979,0.00010999,2]
[333652009,1722305443598,-16317.74307668,0.00010999,2]
[333652010,1722305443609,-9161.13520478,0.00010999,2]
[333652013,1722305444202,157.073011,0.00027,120]
[333652015,1722305446400,-341.935,0.00010478,2]
[333652016,1722305446412,-188.295,0.00010478,2]
[333652017,1722305446422,-1190.84183764,0.00010996,2]
[333652018,1722305446434,-6334.38067116,0.00010996,2]
[333652019,1722305446445,-1064.73000001,0.00010996,2]
[333652020,1722305446456,-623.11688489,0.00010996,2]
[333652021,1722305446548,157.073011,0.00027,120]
[333652022,1722305446635,-1592.17642802,0.00010996,2]
[333652023,1722305446647,-2798.27075187,0.00010996,2]
[333652024,1722305446658,-4205.42647374,0.00010996,2]
[333652025,1722305447922,157.073011,0.00027,120]
[333652026,1722305447973,157.073011,0.00027,120]
[333652027,1722305448238,157.073011,0.00027,120]
[333652028,1722305449146,157.073011,0.00027,120]
[333652029,1722305449457,157.073011,0.00027,120]
[333652030,1722305449803,157.073011,0.00027,120]
[333652031,1722305450085,157.073011,0.00027,120]
[333652032,1722305451062,157.073011,0.00027,120]
[333652033,1722305451409,157.073011,0.00027,120]
[333652034,1722305451710,157.073011,0.00027,120]
[333652035,1722305452451,157.073011,0.00027,120]
[333652036,1722305452841,157.073011,0.00027,120]
[333652037,1722305453226,157.073011,0.00027,120]
[333652038,1722305453587,157.073011,0.00027,120]
[333652039,1722305453996,157.073011,0.00027,120]
[333652040,1722305454329,157.073011,0.00027,120]
[333652041,1722305454407,157.073011,0.00027,120]
[333652044,1722306347908,1000.0,0.00027,120]
[333652052,1722306539361,1000.0,0.00027,120]
[333652067,1722306632341,-956.94,8.219e-05,2]
[333652068,1722306632351,-669.02514294,9.626e-05,2]
[333652069,1722306632363,-171.34485706,9.626e-05,2]
[333652070,1722306632372,-633.09066283,9.631e-05,2]
[333652071,1722306632515,-603.30933717,9.631e-05,2]
[333652072,1722306632539,-765.26,9.694e-05,2]
[333652073,1722306632561,-8941.74,9.702e-05,2]
[333652074,1722306632582,-250.0,9.703e-05,2]
[333652075,1722306632604,-449.54,9.716e-05,2]
[333652076,1722306632625,-159.63,9.75e-05,2]
[333652077,1722306632646,-817.16,9.75e-05,2]
[333652079,1722306632661,-174.53,9.884e-05,2]
[333652081,1722306632671,-167.37,9.937e-05,2]
[333652083,1722306632680,-167.37,9.946e-05,2]
[333652084,1722306632689,-167.37,9.954e-05,2]
[333652085,1722306632699,-167.37,9.962e-05,2]
[333652086,1722306632710,-167.37,9.971e-05,2]
[333652087,1722306632719,-167.37,9.979e-05,2]
[333652088,1722306632729,-167.37,9.987e-05,2]
[333652089,1722306632739,-150.28,0.00010378,2]
[333652090,1722306632749,-956.94,0.0001046,2]
[333652091,1722306632758,-730.86853331,0.00010487,2]
[333652092,1722306632768,-150.0,0.00010496,2]
[333652093,1722306632777,-12804.65212952,0.00010497,2]
[333652095,1722306632788,-481.13236969,0.00010497,2]
[333652097,1722306632799,-500.0,0.00010497,2]
[333652099,1722306632811,-2009.30432018,0.00010497,2]
[333652101,1722306632822,-465.15091479,0.00010497,2]
[333652104,1722306632838,-8209.00007,0.00010497,2]
[333652106,1722306632849,-327.39805379,0.00010497,2]
[333652108,1722306632860,-1695.26839713,0.00010497,2]
[333652164,1722306638558,-4102.02946677,0.00010497,2]
[333652165,1722306638569,-865.69,0.00010497,2]
[333652166,1722306638580,-3253.8447,0.00010497,2]
[333652167,1722306638593,-31283.73631844,0.00010497,2]
[333652168,1722306638603,-7346.52340112,0.00010497,2]
[333652170,1722306638705,-720.7119,0.00010497,2]
[333652306,1722306640620,-23293.4783716,0.00010497,2]
[333652308,1722306640633,-50264.8327624,0.00010497,2]
[333652310,1722306640644,-695.0,0.00010672,2]
[333652313,1722306640663,-15366.70255211,0.00010797,2]
[333652316,1722306640677,-490.39151482,0.00010797,2]
[333652324,1722306640748,-278.00355478,0.00010797,2]
[333652326,1722306640760,-790.57634713,0.00010797,2]
[333652328,1722306640772,-443.0,0.00010797,2]
[333652330,1722306640784,-17406.71813116,0.00010797,2]
[333652332,1722306640794,-32164.9091,0.00010797,2]
[333652334,1722306640804,-840.37,0.00010829,2]
[333652336,1722306640813,-364.8773,0.00010896,2]
[333652338,1722306640822,-183.38364736,0.00010896,2]
[333652340,1722306640832,-23720.7561,0.00010899,2]
[333652342,1722306640842,-6656.8501,0.00010899,2]
[333652344,1722306640851,-159.84634517,0.00010899,2]
[333652346,1722306640861,-159.84634516,0.00010899,2]
[333652348,1722306640870,-563.79069831,0.000109,2]
[333652350,1722306640881,-2190.292822,0.000109,2]
[333652352,1722306640890,-159.84634516,0.000109,2]
[333652354,1722306640899,-500.0,0.00010958,2]
[333652356,1722306640908,-500.0,0.00010958,2]
[333652358,1722306640918,-399.61415693,0.00010958,2]
[333652360,1722306640927,-500.0,0.00010958,2]
[333652362,1722306640937,-354.39816951,0.00010958,2]
[333652610,1722306643523,-145.60183049,0.00010958,2]
[333652612,1722306643533,-473.1155,0.00010958,2]
[333652614,1722306643543,-245.98701243,0.00010958,2]
[333652616,1722306643555,-502.62914673,0.00010958,2]
[333652618,1722306643565,-1317.39,0.00010958,2]
[333652620,1722306643574,-267.0607234,0.00010958,2]
[333652622,1722306643583,-2113.69,0.00010958,2]
[333652624,1722306643593,-2113.69,0.00010958,2]
[333652626,1722306643603,-585.92347713,0.00010958,2]
[333652628,1722306643612,-177.08385822,0.00010958,2]
[333652630,1722306643622,-500.0,0.00010958,2]
[333652632,1722306643633,-500.0,0.00010958,2]
[333652634,1722306643643,-544.57074869,0.00010958,2]
[333652636,1722306643652,-500.0,0.00010958,2]
[333652638,1722306643662,-500.0,0.00010958,2]
[333652640,1722306643671,-500.0,0.00010958,2]
[333652641,1722306643680,-320.0212,0.00010958,2]
[333652643,1722306643690,-500.0,0.00010958,2]
[333652644,1722306643699,-522.95937039,0.00010958,2]
[333652645,1722306643709,-250.0,0.00010959,2]
[333652646,1722306643721,-1341.57,0.00010959,5]
[333652647,1722306643731,-150.0,0.00010959,2]
[333652648,1722306643741,-159.63,0.00010968,2]
[333652649,1722306643750,-500.0,0.00010994,2]
[333652650,1722306643760,-500.0,0.00010994,2]
[333652651,1722306643769,-500.0,0.00010994,2]
[333652652,1722306643779,-1317.39,0.00010994,2]
[333652653,1722306643788,-500.0,0.00010994,2]
[333652655,1722306643798,-500.0,0.00010995,2]
[333652657,1722306643807,-418.6153,0.00010995,2]
[333652659,1722306643816,-488.12511624,0.00010995,2]
[333652661,1722306643826,-1317.39,0.00010995,2]
[333652663,1722306643835,-2113.69,0.00010995,2]
[333652664,1722306643844,-500.0,0.00010995,2]
[333652666,1722306643853,-500.0,0.00010995,2]
[333652668,1722306643863,-500.0,0.00010995,2]
[333652670,1722306643872,-500.0,0.00010996,2]
[333652672,1722306643881,-500.0,0.00010996,2]
[333652674,1722306643891,-1317.39,0.00010996,2]
[333652676,1722306643901,-1317.39,0.00010996,2]
[333652678,1722306643910,-1317.39,0.00010996,2]
[333652680,1722306643919,-2113.69,0.00010996,2]
[333652682,1722306643929,-2113.69,0.00010996,2]
[333652684,1722306643938,-2113.69,0.00010996,2]
[333652686,1722306643947,-500.0,0.00010996,2]
[333652688,1722306643957,-500.0,0.00010996,2]
[333652690,1722306643968,-500.0,0.00010996,2]
[333652692,1722306643977,-500.0,0.00010996,2]
[333652694,1722306643987,-577.18235041,0.00010996,2]
[333652696,1722306643996,-500.0,0.00010996,2]
[333652698,1722306644005,-500.0,0.00010996,2]
[333652700,1722306644015,-500.0,0.00010996,2]
[333652702,1722306644024,-1317.39,0.00010997,2]
[333652704,1722306644033,-2113.69,0.00010997,2]
[333652706,1722306644042,-500.0,0.00010997,2]
[333652708,1722306644051,-557.56714825,0.00010997,2]
[333652710,1722306644061,-35921.60471583,0.00010997,2]
[333652712,1722306644070,-1317.39,0.00010998,2]
[333652714,1722306644079,-1317.39,0.00010998,2]
[333652716,1722306644087,-1317.39,0.00010998,2]
[333652718,1722306644096,-1317.39,0.00010998,2]
[333652720,1722306644106,-500.0,0.00010998,2]
[333652722,1722306644115,-500.0,0.00010998,2]
[333652724,1722306644125,-500.0,0.00010998,2]
[333652726,1722306644134,-500.0,0.00010998,2]
[333652728,1722306644144,-500.0,0.00010998,2]
[333652730,1722306644153,-500.0,0.00010998,2]
[333652731,1722306644162,-641.96082399,0.00010998,2]
[333652733,1722306644171,-155.0443681,0.00010998,2]
[333652735,1722306644181,-500.0,0.00010998,2]
[333652737,1722306644191,-500.0,0.00010998,2]
[333652739,1722306644201,-500.0,0.00010998,2]
[333652742,1722306644212,-500.0,0.00010998,2]
[333652743,1722306644221,-500.0,0.00010998,2]
[333652745,1722306644230,-500.0,0.00010998,2]
[333652747,1722306644240,-500.0,0.00010998,2]
[333652749,1722306644249,-500.0,0.00010998,2]
[333652751,1722306644258,-517.278513,0.00010998,2]
[333652753,1722306644267,-500.0,0.00010998,2]
[333652755,1722306644277,-500.0,0.00010998,2]
[333652757,1722306644286,-308.2885339,0.00010998,2]
[333652759,1722306644297,-500.0,0.00010998,2]
[333652761,1722306644306,-351.25872616,0.00010998,2]
[333652763,1722306644316,-500.0,0.00010998,2]
[333652765,1722306644325,-500.0,0.00010998,2]
[333652767,1722306644335,-490.82909999,0.00010998,2]
[333652769,1722306644345,-2113.69,0.00010998,2]
[333652771,1722306644355,-2113.69,0.00010998,2]
[333652773,1722306644364,-2113.69,0.00010998,2]
[333652775,1722306644374,-2113.69,0.00010998,2]
[333652777,1722306644384,-500.0,0.00010998,2]
[333652779,1722306644393,-414.27994463,0.00010998,2]
[333652781,1722306644403,-647.69398458,0.00010998,2]
[333652783,1722306644412,-170.81540408,0.00010998,2]
[333652785,1722306644421,-500.0,0.00010998,2]
[333652787,1722306644430,-500.0,0.00010998,2]
[333652789,1722306644439,-500.0,0.00010998,2]
[333652791,1722306644449,-570.9391,0.00010998,2]
[333652793,1722306644458,-500.0,0.00010998,2]
[333652795,1722306644468,-500.0,0.00010998,2]
[333652797,1722306644478,-500.0,0.00010998,2]
[333652799,1722306644487,-500.0,0.00010998,2]
[333652801,1722306644495,-166.65,0.00010998,2]
[333652803,1722306644504,-497.55847705,0.00010998,2]
[333652805,1722306644513,-502.19909076,0.00010998,2]
[333652806,1722306644522,-503.48211395,0.00010998,2]
[333652808,1722306644531,-502.86846941,0.00010998,2]
[333652810,1722306644540,-502.35972023,0.00010998,2]
[333652812,1722306644554,-505.26913301,0.00010998,2]
[333652814,1722306644563,-500.0,0.00010998,2]
[333652816,1722306644572,-230.1054548,0.00010998,2]
[333652818,1722306644581,-504.96325386,0.00010998,2]
[333652820,1722306644590,-502.42275611,0.00010998,2]
[333652822,1722306644599,-504.56451237,0.00010998,2]
[333652824,1722306644608,-505.20514882,0.00010998,2]
[333652826,1722306644617,-505.79514967,0.00010998,2]
[333652828,1722306644626,-504.02488325,0.00010998,2]
[333652830,1722306644637,-507.18638164,0.00010998,2]
[333652832,1722306644647,-502.47001742,0.00010998,2]
[333652834,1722306644656,-508.34720303,0.00010998,2]
[333652836,1722306644665,-503.65961337,0.00010998,2]
[333652838,1722306644674,-506.52468979,0.00010998,2]
[333652840,1722306644683,-502.11667343,0.00010998,2]
[333652842,1722306644692,-505.58409211,0.00010998,2]
[333652844,1722306644701,-534.79031119,0.00010998,2]
[333652846,1722306644710,-502.8332717,0.00010998,2]
[333652847,1722306644722,-563.08502054,0.00010998,2]
[333652849,1722306644733,-509.95657459,0.00010998,2]
[333652851,1722306644742,-512.6086818,0.00010998,2]
[333652853,1722306644751,-259.79364688,0.00010998,2]
[333652855,1722306644760,-508.07780991,0.00010998,2]
[333652857,1722306644769,-505.70706767,0.00010998,2]
[333652859,1722306644778,-508.91412545,0.00010998,2]
[333652861,1722306644787,-504.30237476,0.00010998,2]
[333652863,1722306644796,-508.68439031,0.00010998,2]
[333652865,1722306644805,-504.40887397,0.00010998,2]
[333652867,1722306644814,-503.45981181,0.00010998,2]
[333652869,1722306644823,-500.0,0.00010998,2]
[333652871,1722306644832,-189.23809635,0.00010998,2]
[333652873,1722306644841,-500.0,0.00010998,2]
[333652875,1722306644850,-500.0,0.00010998,2]
[333652877,1722306644859,-301.48841504,0.00010998,2]
[333652879,1722306644868,-562.91774808,0.00010998,2]
[333652881,1722306644876,-502.0085767,0.00010998,2]
[333652883,1722306644885,-534.52358367,0.00010998,2]
[333652885,1722306644894,-504.11230279,0.00010998,2]
[333652886,1722306644903,-502.88531734,0.00010998,2]
[333652888,1722306644913,-506.88159865,0.00010998,2]
[333652890,1722306644922,-501.98815375,0.00010998,2]
[333652892,1722306644931,-505.68059653,0.00010998,2]
[333652894,1722306644940,-500.0,0.00010998,2]
[333652896,1722306644949,-164.92674592,0.00010998,2]
[333652898,1722306644958,-504.95581833,0.00010998,2]
[333652900,1722306644971,-503.25852955,0.00010998,2]
[333652902,1722306644980,-507.00341481,0.00010998,2]
[333652904,1722306644989,-503.09763525,0.00010998,2]
[333652906,1722306644998,-503.2379815,0.00010998,2]
[333652908,1722306645007,-512.32174027,0.00010998,2]
[333652910,1722306645016,-500.95848717,0.00010998,2]
[333652912,1722306645025,-505.86291929,0.00010998,2]
[333652914,1722306645034,-520.02366422,0.00010998,2]
[333652916,1722306645044,-498.54939952,0.00010998,2]
[333652918,1722306645053,-510.27250005,0.00010998,2]
[333652920,1722306645062,-501.1282445,0.00010998,2]
[333652922,1722306645071,-500.0,0.00010998,2]
[333652924,1722306645080,-500.0,0.00010998,2]
[333652926,1722306645089,-500.0,0.00010998,2]
[333652928,1722306645097,-636.55933859,0.00010998,2]
[333652930,1722306645106,-500.0,0.00010998,2]
[333652932,1722306645115,-500.0,0.00010998,2]
[333652934,1722306645125,-510.25818702,0.00010998,2]
[333652936,1722306645134,-332.06091469,0.00010998,2]
[333652938,1722306645143,-5157.1437332,0.00010998,2]
[333652939,1722306645152,-75389.30356647,0.00010999,2]
[333652942,1722306645165,-4000.0,0.00010999,2]
[333652944,1722306645180,-8719.15030239,0.00010999,2]
[333653057,1722306646344,-1592.51588198,0.00010999,2]
[333653084,1722306646484,-7834.78375231,0.00010999,2]
[333653089,1722306646496,-422.91126348,0.00010999,2]
[333653092,1722306646507,-6623.97908191,0.00010999,2]
[333653110,1722306646623,-109163.12438933,0.00010999,2]
[333653113,1722306646636,-739.2528329,0.00010999,2]
[333653116,1722306646648,-9214.26318376,0.00010999,2]
[333653164,1722306647056,-103221.71942038,0.00010999,2]
[333653167,1722306647076,-19725.48396326,0.00010999,2]
[333653531,1722307187931,621.6314787,0.00027,120]
[333653534,1722307396718,29000.0,0.00027,120]
[333653550,1722307832682,-937.36,8.219e-05,2]
[333653551,1722307832692,-504.23,9.652e-05,2]
[333653553,1722307832702,-170.15926174,9.652e-05,2]
[333653556,1722307832712,-495.77,9.747e-05,2]
[333653558,1722307832723,-250.0,9.844e-05,2]
[333653560,1722307832732,-2016.89831791,9.848e-05,2]
[333653562,1722307832743,-1020.14524379,9.848e-05,2]
[333653564,1722307832755,-13802.97738609,9.848e-05,2]
[333653567,1722307832914,-514.04905221,9.848e-05,2]
[333653568,1722307832923,-150.0,9.89e-05,2]
[333653569,1722307832933,-172.86,9.903e-05,2]
[333653570,1722307832943,-371.61635124,0.0001,2]
[333653571,1722307832952,-1249.4,0.0001,2]
[333653572,1722307832962,-499.99,0.00010209,2]
[333653573,1722307832972,-937.36,0.0001047,2]
[333653574,1722307832984,-902.39339503,0.0001059,2]
[333653575,1722307832993,-259.5642,0.00010597,2]
[333653576,1722307833002,-150.0,0.00010696,2]
[333653577,1722307833011,-112098.22237001,0.00010697,2]
[333653578,1722307833022,-345.5,0.00010697,2]
[333653579,1722307834829,-2300.0,0.00010697,2]
[333653580,1722307834841,-9336.93662999,0.00010697,2]
[333653581,1722307834851,-167.1245,0.00010699,2]
[333653582,1722307834861,-7202.78422005,0.00010799,2]
[333653583,1722307834873,-8238.93747995,0.00010799,2]
[333653584,1722307834883,-504.23,0.00010858,2]
[333653585,1722307834893,-952.11028628,0.0001089,2]
[333653586,1722307834906,-194.83867799,0.00010898,2]
[333653587,1722307834915,-12358.16818441,0.00010899,2]
[333653588,1722307834926,-539.12992939,0.00010899,2]
[333653589,1722307834938,-1146.50038806,0.00010899,2]
[333653590,1722307834950,-7526.18825408,0.00010899,2]
[333653593,1722307838727,-37557.66117333,0.00010899,2]
[333653594,1722307838739,-39720.00167073,0.00010899,2]
[333653595,1722307838748,-1259.3249,0.00010899,2]
[333653596,1722307838758,-194.83867798,0.00010899,2]
[333653597,1722307838767,-9664.58125963,0.00010899,2]
[333653598,1722307838776,-9664.58125963,0.00010899,2]
[333653599,1722307838786,-9664.58125963,0.00010899,2]
[333653600,1722307838795,-9664.58125963,0.00010899,2]
[333653601,1722307838805,-9664.58125963,0.00010899,2]
[333653602,1722307838815,-9664.58125963,0.00010899,2]
[333653603,1722307838824,-9664.58125963,0.00010899,2]
[333653604,1722307838834,-9664.58125963,0.00010899,2]
[333653605,1722307838844,-194.83867798,0.000109,2]
[333653606,1722307838853,-9664.58125963,0.000109,2]
[333653607,1722307838863,-150.158,0.00010928,2]
[333653608,1722307838872,-247.019,0.00010928,2]
[333653609,1722307838881,-521.3317,0.00010945,2]
[333653610,1722307838891,-506.88159865,0.00010958,2]
[333653611,1722307838900,-501.98815375,0.00010958,2]
[333653612,1722307838913,-504.95581833,0.00010958,2]
[333653613,1722307838922,-500.0,0.00010958,2]
[333653614,1722307838932,-503.09763525,0.00010958,2]
[333653615,1722307838942,-503.2379815,0.00010958,2]
[333653616,1722307838952,-137.57484918,0.00010958,2]
[333653617,1722307838964,-297.73623329,0.00010958,2]
[333653618,1722307838977,-65.6474047,0.00010958,2]
[333653619,1722307838987,-425.53326316,0.00010958,2]
[333653620,1722307838998,-94.49040106,0.00010958,2]
[333653621,1722307839008,-498.54939952,0.00010958,2]
[333653622,1722307839017,-544.00810453,0.00010958,2]
[333653623,1722307839027,-510.27250005,0.00010958,2]
[333653624,1722307839036,-500.0,0.00010958,2]
[333653625,1722307839046,-500.0,0.00010958,2]
[333653626,1722307839055,-500.0,0.00010958,2]
[333653627,1722307839065,-245.98701243,0.00010958,2]
[333653628,1722307839075,-508.17397749,0.00010958,2]
[333653629,1722307839084,-538.04872097,0.00010958,2]
[333653630,1722307839094,-508.71909205,0.00010958,2]
[333653631,1722307839103,-522.69956105,0.00010958,2]
[333653632,1722307839112,-499.15171112,0.00010958,2]
[333653633,1722307839122,-549.62688882,0.00010958,2]
[333653634,1722307839132,-500.0,0.00010958,2]
[333653635,1722307839142,-500.0,0.00010958,2]
[333653636,1722307839151,-500.0,0.00010958,2]
[333653637,1722307839160,-528.16392541,0.00010958,2]
[333653638,1722307839170,-502.35972023,0.00010958,2]
[333653639,1722307839180,-500.0,0.00010958,2]
[333653640,1722307839189,-1.12605347,0.00010958,2]
[333653641,1722307839201,-498.87394653,0.00010958,2]
[333653642,1722307839211,-505.20514882,0.00010958,2]
[333653643,1722307839224,-507.18638164,0.00010958,2]
[333653644,1722307839233,-508.34720303,0.00010958,2]
[333653645,1722307839242,-497.55847705,0.00010958,2]
[333653646,1722307839251,-503.48211395,0.00010958,2]
[333653647,1722307839260,-506.52468979,0.00010958,2]
[333653648,1722307839269,-502.86846941,0.00010958,2]
[333653649,1722307839279,-505.58409211,0.00010958,2]
[333653650,1722307839288,-502.19909076,0.00010958,2]
[333653651,1722307839296,-534.79031119,0.00010958,2]
[333653653,1722307839306,-505.26913301,0.00010958,2]
[333653655,1722307839316,-502.8332717,0.00010958,2]
[333653657,1722307839325,-502.42275611,0.00010958,2]
[333653659,1722307839334,-504.96325386,0.00010958,2]
[333653661,1722307839344,-563.08502054,0.00010958,2]